Cogmind - Beta 15 @@@ ROGUE MODE // 2025.07.20 @ 09:00:52 Player: korgoth Result: Core destroyed Performance ------------- Evolutions (8) 4000 Regions Visited (14) 2800 Robots Destroyed (11) 55 Value Destroyed (351) 351 Prototype IDs (41) 820 Alien Tech Used (0) 0 Bonus (1800) 1800 TOTAL SCORE: 9826 Bonus ------- Registered with UFD 300 Met Optimus in HQ 500 Met Warlord at Base 500 MAIN.C Attacked Warlord 500 Cogmind --------- Core Integrity 0/1450 Matter 94/300 Energy 100/100 System Corruption 0% Temperature Cool (0) Movement Core (50) Location -2/Research Parts ------- > --- POWER (2) -------- (None) > --- PROPULSION (6) --- (None) > --- UTILITY (12) ----- Advanced Launcher Guidance Computer Advanced Launcher Guidance Computer Advanced Launcher Guidance Computer Advanced Launcher Guidance Computer Advanced Launcher Guidance Computer > --- WEAPON (3) ------- (None) > --- INVENTORY (5) ---- Enhanced Quantum Rifle Peak State ------------ > --- POWER ------------ (None) > --- PROPULSION ------- Improved Heavy Siege Treads Q-thruster Impulse Thruster Array > --- UTILITY ---------- Advanced Signal Interpreter Makeshift Salvage Targeting Computer Advanced Launcher Guidance Computer Advanced Launcher Guidance Computer Advanced Launcher Guidance Computer Advanced Launcher Guidance Computer Advanced Launcher Guidance Computer Advanced Launcher Guidance Computer Advanced Launcher Guidance Computer A0-MCA's Component Scanner Advanced Trap Extractor > --- WEAPON ----------- Variable Charge Gun Fusion Bomb Launcher Improved Plasma Cutter > --- INVENTORY -------- Improved Gyrokinetic Inverter Antigrav Array Matter Neutralizer [Rating: 143] Favorites ----------- Power Light Deuterium Engine Engine Light Deuterium Engine Power Core Light Nuclear Core Reactor Micro Antimatter Reactor Propulsion Wheel Treads Improved Heavy Siege Treads Leg Improved Thunder Leg Wheel Wheel Hover Unit Improved Antigrav System Flight Unit Biomechanical Wings Utility Advanced Launcher Guidance Computer Device Gravity Neutralizer Storage Large Storage Unit Processor Advanced Launcher Guidance Computer Hackware Hacking Suite Protection Makeshift Light Armor Plating Weapon Improved Grenade Launcher Energy Gun High-powered Shock Rifle Energy Cannon Matter Neutralizer Ballistic Gun Assault Rifle Launcher Improved Grenade Launcher Special Weapon Improved Plasma Cutter Slashing Weapon Phasing Sabre Piercing Weapon Heavy Pick Build | -11 -10 -10 -8 -8 -6 -5 -5 -5 -5 -4 -4 -4 -3 -2 ------- Run | Yrd Mat Sub Rec Scr Fac Fac Upp Upp War Pro Fac Arm Res Res Slots Evolved 16 | . . . . . 8 2 . . . . 2 . 2 2 Power 1 | . . . . . . . . . . . 1 . . . Propulsion 4 | . . . . . 2 . . . . . 1 . . 1 Utility 10 | . . . . . 6 2 . . . . . . 1 1 Weapon 1 | . . . . . . . . . . . . . 1 . Parts Attached 87 | 7 4 2 1 7 11 9 2 5 6 3 1 6 22 1 Power 9 | 1 . 1 1 1 . 1 . 1 1 1 . 1 . . Engine 5 | 1 . 1 1 1 . . . . . 1 . . . . Core 2 | . . . . . . 1 . 1 . . . . . . Reactor 2 | . . . . . . . . . 1 . . 1 . . Propulsion 26 | 2 . . . 1 4 4 1 1 3 . . 2 7 1 Treads 1 | . . . . . . . . . . . . . 1 . Leg 1 | . . . . . . . . . . . . . 1 . Wheel 3 | 2 . . . 1 . . . . . . . . . . Hover 1 | . . . . . . . . . . . . 1 . . Flight 20 | . . . . . 4 4 1 1 3 . . 1 5 1 Utility 32 | 2 3 . . 1 6 3 1 1 2 2 1 1 9 . Device 10 | 1 . . . . 3 3 . . 1 1 . . 1 . Storage 3 | 1 2 . . . . . . . . . . . . . Processor 15 | . 1 . . 1 1 . 1 1 . 1 . 1 8 . Hackware 2 | . . . . . . . . . 1 . 1 . . . Protection 2 | . . . . . 2 . . . . . . . . . Artifact . | . . . . . . . . . . . . . . . Weapon 20 | 2 1 1 . 4 1 1 . 2 . . . 2 6 . Energy Gun 4 | 1 . . . 1 . . . 1 . . . . 1 . Energy Cannon 1 | . . . . . . . . . . . . . 1 . Ballistic Gun 6 | 1 1 1 . 1 1 . . . . . . 1 . . Ballistic Cannon . | . . . . . . . . . . . . . . . Launcher 4 | . . . . 2 . . . . . . . . 2 . Special Weapon 2 | . . . . . . . . . . . . 1 1 . Impact Weapon . | . . . . . . . . . . . . . . . Slashing Weapon 1 | . . . . . . . . 1 . . . . . . Piercing Weapon 2 | . . . . . . 1 . . . . . . 1 . Special Melee Weapon . | . . . . . . . . . . . . . . . Unidentified Prototypes . | . . . . . . . . . . . . . . . Parts Lost 55 | . . 1 . . . 8 2 2 3 . 4 12 13 10 Power 4 | . . 1 . . . 1 . . 1 . 1 . . . Propulsion 21 | . . . . . . 4 1 2 1 . 2 3 4 4 Utility 19 | . . . . . . 2 1 . 1 . 1 5 4 5 Weapon 11 | . . . . . . 1 . . . . . 4 5 1 Highest Loss Streak 10 | . . 1 . . . 8 2 1 2 . 4 7 5 10 To Critical Strikes 1 | . . . . . . . . . . . . . 1 . Average Backups 9 | 3 10 14 12 14 9 5 2 6 7 5 6 6 3 1 Power . | . 1 1 . . . . . . . . . . . . Propulsion 2 | 2 4 5 5 4 3 2 . . . . . . 2 . Utility 3 | . 1 3 3 5 2 2 1 2 1 1 1 2 . . Weapon 2 | . 3 4 4 3 2 . . 3 3 3 3 2 . . Tool/Special . | . . . . . . . . . . . . . . . Unused Backups 22 | . 3 . . 4 2 3 . . 2 . . 3 4 1 Power . | . . . . . . . . . . . . . . . Propulsion 8 | . 2 . . . 1 2 . . 1 . . . 2 . Utility 8 | . . . . 3 . 1 . . . . . 2 2 . Weapon 6 | . 1 . . 1 1 . . . 1 . . 1 . 1 Tool/Special . | . . . . . . . . . . . . . . . Average Slot Usage (%) 86 | . 100 99 100 100 81 86 84 79 80 93 87 47 60 40 Engine 7 | . 14 13 14 14 6 3 . . . 3 5 . . . Core 1 | . . . . . . . 5 5 4 . . . . . Wheel 13 | . 28 28 28 28 7 . . . . . . . . . Flight 6 | . . . . . 10 21 22 12 12 21 19 2 5 4 Device 7 | . 9 . . . 11 25 22 17 16 15 11 5 1 1 Storage 8 | . 14 14 14 14 6 5 5 5 5 5 5 3 . . Processor 18 | . 4 14 14 14 12 11 15 20 22 21 21 19 43 31 Hackware 1 | . . . . . . . . . 4 5 8 7 . . Protection 1 | . . . . . 10 5 5 5 . 5 5 . . . Energy Gun 6 | . 6 . . 13 3 . . . 8 11 10 3 2 . Ballistic Gun 5 | . 21 28 28 . 4 7 . 3 . . . . . . Launcher 4 | . . . . 13 3 . . . . . . . 1 . Peak Build Rating 143 | 7 8 11 11 26 67 81 81 76 68 70 71 59 143 129 Average Rating 43 | 4 7 8 11 18 52 70 77 67 60 66 66 42 104 76 On Entrance 42 | . 7 8 10 11 26 62 70 71 67 56 70 45 24 115 Naked Turns . | . . . . . . . . . . . . . . . Heaviest Build 53 | 15 30 29 29 36 53 25 24 26 22 23 23 11 24 7 Greatest Support 39 | 20 20 20 20 20 22 39 29 29 32 29 29 13 32 32 Greatest Overweight (x) 4 | . 1 1 1 1 4 1 . 1 . 1 1 1 1 2 Average Overweight (x) . | . . 1 1 1 1 . . . . . . . . . Largest Inventory Capacity 25 | 8 25 15 15 15 15 8 8 8 8 8 8 8 5 5 Average Capacity 10 | 7 12 15 15 15 12 8 8 8 8 8 8 7 5 5 Most Carried 15 | 6 15 15 13 15 15 8 6 8 8 8 8 8 5 2 Average Carried 10 | 3 10 14 12 14 10 6 2 6 7 5 7 6 4 1 Final Capacity 15 | 8 15 15 15 15 8 8 8 8 8 8 8 5 5 5 Final Carried 15 | 5 15 13 13 15 8 3 6 7 7 5 8 3 3 1 Class Distribution -------------------- 75% | Mutant 8% | Scavenger-Sprinter 5% | Scavenger-Mutant 3% | Scavenger-Scout Dominant Class ---------------- Mutant | -10/Materials Mutant | -10/Subcaves Mutant | -8/Recycling Mutant | -8/Scraptown Scavenger-Sprinter | -6/Factory Scavenger-Sprinter | -5/Factory Mutant | -5/Upper Caves Scavenger-Mutant | -5/Upper Caves Mutant | -5/Warlord Scavenger-Scout | -4/Proximity Caves Hacker-Scout | -4/Factory Hacker-Mutant | -4/Armory Mutant | -3/Research Mutant | -2/Research Resources | -11 -10 -10 -8 -8 -6 -5 -5 -5 -5 -4 -4 -4 -3 -2 ----------- Run | Yrd Mat Sub Rec Scr Fac Fac Upp Upp War Pro Fac Arm Res Res Matter Collected 869 | 291 20 44 11 93 . 104 109 45 60 50 . . 9 33 Remotely . | . . . . . . . . . . . . . . . Salvage Created 337 | 92 . . . 58 . . . 104 . 8 . . 42 33 Parts 19 | 4 . . . 1 . . . 7 . 1 . . 3 3 Haulers Intercepted . | . . . . . . . . . . . . . . . Recyclers Shooed . | . . . . . . . . . . . . . . . Parts Field Recycled . | . . . . . . . . . . . . . . . Retrieved Matter . | . . . . . . . . . . . . . . . Parts Self-Destructed 11 | . . 5 . 1 . . . 4 . 1 . . . . Prevented 1 | . . . . . . . 1 . . . . . . . Kills | -11 -10 -10 -8 -8 -6 -5 -5 -5 -5 -4 -4 -4 -3 -2 ------- Run | Yrd Mat Sub Rec Scr Fac Fac Upp Upp War Pro Fac Arm Res Res Combat Hostiles Destroyed 9 | . . . . 1 . . . 3 . 1 . . 3 1 Melee 2 | . . . . . . . . 1 . . . . . 1 Guns 3 | . . . . . . . . 2 . 1 . . . . AOE 4 | . . . . 1 . . . . . . . . 3 . Classes Destroyed 6 | 2 . . . 1 . . . 2 . 1 . . . . Tunneler 1 | 1 . . . . . . . . . . . . . . Recycler 1 | 1 . . . . . . . . . . . . . . Drone 1 | . . . . . . . . . . 1 . . . . Swarmer 6 | . . . . . . . . 2 . . . . 3 1 Hunter 1 | . . . . . . . . 1 . . . . . . Ranger 1 | . . . . 1 . . . . . . . . . . Best Kill Streak 3 | 2 . . . 1 . . . 2 . 1 . . 3 1 Combat Bots Only 3 | . . . . 1 . . . 2 . 1 . . 3 1 Max Kills in Single Turn 2 | 1 . . . 1 . . . 1 . 1 . . 2 1 Gunslinging . | . . . . . . . . . . . . . . . Exploded 2 | . . . . 1 . . . . . . . . 2 . Melee 1 | . . . . . . . . 1 . . . . . 1 Uniques/NPCs Destroyed . | . . . . . . . . . . . . . . . Combat | -11 -10 -10 -8 -8 -6 -5 -5 -5 -5 -4 -4 -4 -3 -2 -------- Run | Yrd Mat Sub Rec Scr Fac Fac Upp Upp War Pro Fac Arm Res Res Hostile Shots Fired 714 | . . 53 . 11 . 101 48 11 28 . 12 97 226 127 Missed 316 | . . 12 . 4 . 55 25 1 16 . 4 38 114 47 Hits 398 | . . 41 . 7 . 46 23 10 12 . 8 59 112 80 Melee 4 | . . . . 2 . . . . . . . 2 . . Projectile 394 | . . 41 . 5 . 46 23 10 12 . 8 57 112 80 AOE 2 | . . . . . . . . . 2 . . . . . Critical Strikes 10 | . . 1 . . . 2 . . 1 . . 1 4 1 Damage Taken 8003 | . . 314 . 75 . 753 335 153 281 . 206 1076 2785 2025 Core 3420 | . . 19 . . . 49 48 15 104 . 76 611 1012 1486 Absorbed by Shields . | . . . . . . . . . . . . . . . Regen/Repaired (Parts) 163 | . . . . 116 5 . . . 42 . . . . . Core Remaining (%) 72 | 100 . . . 92 100 . . . . 78 . 40 22 . Volleys Fired 22 | 7 . . . 4 . . . 6 . 3 . . 2 . Largest 2 | 2 . . . 2 . . . 1 . 2 . . 2 . Hottest 127 | 70 . . . 96 . . . 50 . 80 . . 127 . Shots Fired 35 | 14 . . . 5 . . . 6 . 6 . . 4 . Gun 32 | 14 . . . 4 . . . 6 . 6 . . 2 . Cannon . | . . . . . . . . . . . . . . . Launcher 3 | . . . . 1 . . . . . . . . 2 . Special . | . . . . . . . . . . . . . . . Kinetic 7 | 7 . . . . . . . . . . . . . . Thermal 21 | 7 . . . . . . . 6 . 6 . . 2 . Explosive 3 | . . . . 1 . . . . . . . . 2 . Electromagnetic 4 | . . . . 4 . . . . . . . . . . Robot Hit Streak 5 | 5 . . . 4 . . . 5 . 4 . . 1 . Robot Miss Streak 3 | 1 . . . 1 . . . 3 . 3 . . 1 . Penetration Max . | . . . . . . . . . . . . . . . Secondary Targets . | . . . . . . . . . . . . . . . Shots Hit Robots 28 | 11 . . . 4 . . . 5 . 3 . . 2 3 Core Hits 17 | 3 . . . 2 . . . 4 . 1 . . 6 1 Critical Kills . | . . . . . . . . . . . . . . . Critical Parts Destroyed . | . . . . . . . . . . . . . . . Critical Strikes 4 | 2 . . . 1 . . . 1 . . . . . . Burn 3 | 2 . . . . . . . 1 . . . . . . Corrupt 1 | . . . . 1 . . . . . . . . . . Melee Attacks 19 | . . . . . . 9 1 2 . . . . 2 5 Impact . | . . . . . . . . . . . . . . . Slashing 2 | . . . . . . . . 2 . . . . . . Piercing 17 | . . . . . . 9 1 . . . . . 2 5 Sneak Attacks 1 | . . . . . . . . 1 . . . . . . Combat Hostiles 1 | . . . . . . . . 1 . . . . . . Follow-up Attacks . | . . . . . . . . . . . . . . . Damage Inflicted 1250 | 137 . . . 115 . . . 186 . 40 . . 629 143 Guns 319 | 137 . . . 68 . . . 51 . 40 . . 23 . Cannons . | . . . . . . . . . . . . . . . Explosions 653 | . . . . 47 . . . . . . . . 606 . Melee 261 | . . . . . . . . 135 . . . . . 126 Ramming 17 | . . . . . . . . . . . . . . 17 Kinetic 63 | 63 . . . . . . . . . . . . . . Thermal 188 | 74 . . . . . . . 51 . 40 . . 23 . Explosive 653 | . . . . 47 . . . . . . . . 606 . Electromagnetic 68 | . . . . 68 . . . . . . . . . . Impact . | . . . . . . . . . . . . . . . Slashing 135 | . . . . . . . . 135 . . . . . . Piercing 126 | . . . . . . . . . . . . . . 126 Highest Corruption 3 | . . . . . . . . . . . . . 3 . Average Corruption 2 | . . . . . . . . . . . . . 2 . Corruption Purged . | . . . . . . . . . . . . . . . Corruption Blocked . | . . . . . . . . . . . . . . . Effects 2 | . . . . . . . . . . . . . 2 . Matter Fused 2 | . . . . . . . . . . . . . 2 . Overload Shots . | . . . . . . . . . . . . . . . Overflow Damage 33 | . . . . . . . . . . . . . 33 . Projectiles . | . . . . . . . . . . . . . . . Explosions 33 | . . . . . . . . . . . . . 33 . Melee . | . . . . . . . . . . . . . . . Knockbacks . | . . . . . . . . . . . . . . . Impact . | . . . . . . . . . . . . . . . Kinetic . | . . . . . . . . . . . . . . . Secondary . | . . . . . . . . . . . . . . . Self-Inflicted Damage 10 | . . . . . . . . . . . . . 2 8 Shots 1 | . . . . . . . . . . . . . 1 . Rammed 5 | . . . . . . . . . . . . . . 5 Targets Rammed 5 | . . . . . . . . . . . . . . 5 Kicked . | . . . . . . . . . . . . . . . Crushed . | . . . . . . . . . . . . . . . Highest Temperature 45 | 45 . . . 45 . . . 8 2 . . . 12 . Average Temperature 14 | 18 . . . 16 . . . 7 2 . . . 7 . Received Heat Transfer 665 | . . 120 . 32 . 45 18 . 36 . 27 306 81 . Siege Activations . | . . . . . . . . . . . . . . . Martial Activations . | . . . . . . . . . . . . . . . Shielding Activations . | . . . . . . . . . . . . . . . Robots Disrupted . | . . . . . . . . . . . . . . . Combat Hostiles . | . . . . . . . . . . . . . . . Robots Corrupted . | . . . . . . . . . . . . . . . Combat Hostiles . | . . . . . . . . . . . . . . . Parts Fried 1 | . . . . 1 . . . . . . . . . . Impact Corruptions . | . . . . . . . . . . . . . . . Robots Melted . | . . . . . . . . . . . . . . . Combat Hostiles . | . . . . . . . . . . . . . . . Parts Melted 2 | 1 . . . . . . . 1 . . . . . . Heat Transferred 703 | 370 . . . . . . . 185 . 111 . . 37 . Parts Sabotaged 3 | . . . . . . . . . . . . 3 . . Parts Stolen . | . . . . . . . . . . . . . . . Parts Stripped . | . . . . . . . . . . . . . . . Power Chain Reactions . | . . . . . . . . . . . . . . . Alert | -11 -10 -10 -8 -8 -6 -5 -5 -5 -5 -4 -4 -4 -3 -2 ------- Run | Yrd Mat Sub Rec Scr Fac Fac Upp Upp War Pro Fac Arm Res Res Maximum Alert Level . | . . . . . . . . . . . . . . . Low Security (%) 100 | 100 100 . 100 . 100 100 . . . . 100 100 100 100 Level 1 . | . . . . . . . . . . . . . . . Level 2 . | . . . . . . . . . . . . . . . Level 3 . | . . . . . . . . . . . . . . . Level 4 . | . . . . . . . . . . . . . . . Level 5 . | . . . . . . . . . . . . . . . High Security . | . . . . . . . . . . . . . . . Max Security . | . . . . . . . . . . . . . . . Peak Influence 196 | 5 . . 4 . 5 149 . . . . 150 74 196 100 Initial 150 | . . . . . . . . . . . 150 42 17 83 Average 27 | . . . . . . 12 . . . . 139 14 70 53 Influence Increases 1343 | 10 . . 14 . 5 282 45 100 45 5 158 134 405 140 Destroy 0b10 Robot/C 140 | . . . . . . . . 60 . . . . 60 20 Destroy 0b10 Robot/NC 15 | 10 . . . . . . . . . 5 . . . . Destroy Leader 20 | . . . . . . . . 10 . . . . 10 . Successful Hack 50 | . . . 14 . 5 . . . . . 8 14 9 . Destroy Structure 68 | . . . . . . 12 . . . . . . 56 . Advance Influence 150 | . . . . . . . . . . . 150 . . . Partial Spotted 15 | . . . . . . . . . . . . . 15 . Lose Combat Pursuer 885 | . . . . . . 270 45 30 45 . . 120 255 120 Influence Decreases 1263 | 10 . . 14 . 5 133 159 135 28 22 70 188 291 208 Entered New Map 209 | . . . . . . . 56 8 . 17 . 46 17 65 Time Decay 640 | 10 . . 14 . 5 60 100 107 8 5 30 57 194 50 Lost Part 412 | . . . . . . 71 3 20 20 . 40 85 80 93 Lost Ally 2 | . . . . . . 2 . . . . . . . . Squads Dispatched 9 | . 1 . . . . 4 . . . . . 1 3 . Investigation 1 | . . . . . . 1 . . . . . . . . Extermination 5 | . . . . . . 2 . . . . . 1 2 . Reinforcement 3 | . 1 . . . . 1 . . . . . . 1 . Assault . | . . . . . . . . . . . . . . . Garrison . | . . . . . . . . . . . . . . . Intercept . | . . . . . . . . . . . . . . . Searches Triggered . | . . . . . . . . . . . . . . . Construction Impeded . | . . . . . . . . . . . . . . . Haulers Reinforced . | . . . . . . . . . . . . . . . Active Scanning Responses . | . . . . . . . . . . . . . . . Cargo Convoy Interrupts . | . . . . . . . . . . . . . . . Stealth | -11 -10 -10 -8 -8 -6 -5 -5 -5 -5 -4 -4 -4 -3 -2 --------- Run | Yrd Mat Sub Rec Scr Fac Fac Upp Upp War Pro Fac Arm Res Res Distress Signals 9 | . 1 . . . . 2 . . 2 . . 2 1 1 Communications Jammed . | . . . . . . . . . . . . . . . Distress Signals . | . . . . . . . . . . . . . . . Times Spotted 205 | . 7 12 . 16 . 26 8 5 42 1 6 31 34 17 Peak Tracking Total 22 | . 5 8 . 5 . 12 7 2 17 1 6 22 11 9 Tactical Retreats 22 | . . 1 . . . 4 2 1 1 . . 5 6 2 Traps | -11 -10 -10 -8 -8 -6 -5 -5 -5 -5 -4 -4 -4 -3 -2 ------- Run | Yrd Mat Sub Rec Scr Fac Fac Upp Upp War Pro Fac Arm Res Res Traps Triggered 1 | . . . . . . . . . . . . 1 . . Indirectly . | . . . . . . . . . . . . . . . Trap Hack Attempts . | . . . . . . . . . . . . . . . Triggered . | . . . . . . . . . . . . . . . Disarmed . | . . . . . . . . . . . . . . . Reprogrammed . | . . . . . . . . . . . . . . . Reused . | . . . . . . . . . . . . . . . Traps Extracted . | . . . . . . . . . . . . . . . Installed . | . . . . . . . . . . . . . . . Triggered . | . . . . . . . . . . . . . . . Machines | -11 -10 -10 -8 -8 -6 -5 -5 -5 -5 -4 -4 -4 -3 -2 ---------- Run | Yrd Mat Sub Rec Scr Fac Fac Upp Upp War Pro Fac Arm Res Res Machines Disabled . | . . . . . . . . . . . . . . . Max in Single Turn . | . . . . . . . . . . . . . . . Machines Repaired . | . . . . . . . . . . . . . . . Machines Dismantled . | . . . . . . . . . . . . . . . Machines Sabotaged . | . . . . . . . . . . . . . . . Overloaded Fab Kills . | . . . . . . . . . . . . . . . Hacking | -11 -10 -10 -8 -8 -6 -5 -5 -5 -5 -4 -4 -4 -3 -2 --------- Run | Yrd Mat Sub Rec Scr Fac Fac Upp Upp War Pro Fac Arm Res Res Machines Accessed 36 | . 3 2 5 9 3 3 1 1 2 . 2 4 1 . Terminals 11 | . 1 . 2 . 2 2 . . . . . 3 1 . Fabricators 1 | . . . . . 1 . . . . . . . . . Repair Stations . | . . . . . . . . . . . . . . . Recycling Units 5 | . 2 . 1 . . 1 . . . . . 1 . . Scanalyzers 2 | . . . . . . . . . . . 2 . . . Garrison Access . | . . . . . . . . . . . . . . . Total Hacks 119 | . 4 3 28 60 5 3 1 1 3 . 3 5 3 . Successful 109 | . 3 3 27 60 4 1 1 1 3 . 1 2 3 . Failed 10 | . 1 . 1 . 1 2 . . . . 2 3 . . Catastrophic 1 | . . . . . . . . . . . . 1 . . Database Lockouts . | . . . . . . . . . . . . . . . Manual 3 | . 1 . 1 . . . . . . . . 1 . . Terminals 16 | . 2 . 2 . 3 2 . . . . . 4 3 . Fabricators 2 | . . . . . 2 . . . . . . . . . Repair Stations . | . . . . . . . . . . . . . . . Recycling Units 5 | . 2 . 1 . . 1 . . . . . 1 . . Scanalyzers 3 | . . . . . . . . . . . 3 . . . Garrison Access . | . . . . . . . . . . . . . . . Terminal Hacks 102 | . 1 3 26 60 2 1 1 1 3 . . 1 3 . Record 81 | . . 1 24 54 . . . . 2 . . . . . Robot Analysis 6 | . . . . 6 . . . . . . . . . . Open Door 4 | . . 1 . . . . 1 1 1 . . . . . Open DSF 1 | . . . . . . 1 . . . . . . . . Emergency Access Points 1 | . . . . . 1 . . . . . . . . . Alert Level 1 | . . . . . . . . . . . . . 1 . Locate Traps 2 | . . . . . 1 . . . . . . . 1 . Zone Layout 4 | . 1 . 1 . . . . . . . . 1 1 . Release Object 2 | . . 1 1 . . . . . . . . . . . Fabricator Hacks 2 | . . . . . 2 . . . . . . . . . Network Status 1 | . . . . . 1 . . . . . . . . . Build 1 | . . . . . 1 . . . . . . . . . Repair Station Hacks . | . . . . . . . . . . . . . . . Recycling Unit Hacks 4 | . 2 . 1 . . . . . . . . 1 . . Report Inventory 4 | . 2 . 1 . . . . . . . . 1 . . Scanalyzer 1 | . . . . . . . . . . . 1 . . . Insert Component 1 | . . . . . . . . . . . 1 . . . Garrison Access Hacks . | . . . . . . . . . . . . . . . Unauthorized Hacks . | . . . . . . . . . . . . . . . Terminals . | . . . . . . . . . . . . . . . Fabricators . | . . . . . . . . . . . . . . . Repair Stations . | . . . . . . . . . . . . . . . Recycling Units . | . . . . . . . . . . . . . . . Scanalyzers . | . . . . . . . . . . . . . . . Garrison Access . | . . . . . . . . . . . . . . . Data Cores Recovered . | . . . . . . . . . . . . . . . Used . | . . . . . . . . . . . . . . . Hacking Detections 9 | . . . 1 . 1 2 . . . . 1 3 1 . Full Trace Events . | . . . . . . . . . . . . . . . Feedback Events . | . . . . . . . . . . . . . . . Feedback Blocked . | . . . . . . . . . . . . . . . Robot Schematics Acquired . | . . . . . . . . . . . . . . . Robots Built 4 | . . . . . 4 . . . . . . . . . Authchips . | . . . . . . . . . . . . . . . Time 81 | . . . . . 81 . . . . . . . . . Total Robot Build Rating 4 | . . . . . 4 . . . . . . . . . Part Schematics Acquired . | . . . . . . . . . . . . . . . Parts Built . | . . . . . . . . . . . . . . . Authchips . | . . . . . . . . . . . . . . . Time . | . . . . . . . . . . . . . . . Total Part Build Rating . | . . . . . . . . . . . . . . . Parts Repaired . | . . . . . . . . . . . . . . . Time . | . . . . . . . . . . . . . . . Parts Recycled . | . . . . . . . . . . . . . . . Recycled Matter . | . . . . . . . . . . . . . . . Retrieved Matter . | . . . . . . . . . . . . . . . Retrieved Components . | . . . . . . . . . . . . . . . Parts Scanalyzed 1 | . . . . . . . . . . . 1 . . . Part Schematics Acquired . | . . . . . . . . . . . . . . . Parts Damaged 1 | . . . . . . . . . . . 1 . . . Bothacking | -11 -10 -10 -8 -8 -6 -5 -5 -5 -5 -4 -4 -4 -3 -2 ------------ Run | Yrd Mat Sub Rec Scr Fac Fac Upp Upp War Pro Fac Arm Res Res Used RIF Installer . | . . . . . . . . . . . . . . . Robots Hacked . | . . . . . . . . . . . . . . . Non-combat . | . . . . . . . . . . . . . . . Combat . | . . . . . . . . . . . . . . . Robot Hacks Applied . | . . . . . . . . . . . . . . . Relay Couplers Released . | . . . . . . . . . . . . . . . Fabnet Peak Effective % . | . . . . . . . . . . . . . . . Robots Rewired . | . . . . . . . . . . . . . . . Allies Hacked . | . . . . . . . . . . . . . . . Hacks Repelled . | . . . . . . . . . . . . . . . Allies | -11 -10 -10 -8 -8 -6 -5 -5 -5 -5 -4 -4 -4 -3 -2 -------- Run | Yrd Mat Sub Rec Scr Fac Fac Upp Upp War Pro Fac Arm Res Res Total Allies 4 | . . . . . 4 . . . . . . . . . Largest Group 4 | . . . . . 4 4 . . . . . . . . Highest-Rated Group 24 | . . . . . 24 24 . . . . . . . . Highest-Rated Ally 6 | . . . . . 6 6 . . . . . . . . Total Orders . | . . . . . . . . . . . . . . . Ally Attacks . | . . . . . . . . . . . . . . . Total Damage . | . . . . . . . . . . . . . . . Kills . | . . . . . . . . . . . . . . . Allies Corrupted . | . . . . . . . . . . . . . . . Allies Melted 4 | . . . . 4 . . . . . . . . . . Intel | -11 -10 -10 -8 -8 -6 -5 -5 -5 -5 -4 -4 -4 -3 -2 ------- Run | Yrd Mat Sub Rec Scr Fac Fac Upp Upp War Pro Fac Arm Res Res Active Infowar (turns) 2200 | 9 168 . . . . 25 230 393 661 246 65 249 154 . Optics 1929 | . . . . . . . 161 393 661 246 65 249 154 . Sensors 299 | . . . . . . . . . . 179 65 55 . . Traps 19 | . . . . . . . . . 19 . . . . . Seismic 177 | 9 168 . . . . . . . . . . . . . Cloaking 222 | . . . . . . 25 197 . . . . . . . Robot Analysis Total 6 | . . . . 6 . . . . . . . . . . Derelict Logs Recovered 3 | . . 1 . . . . . 2 . . . . . . Drone Launches . | . . . . . . . . . . . . . . . Drone Recoveries . | . . . . . . . . . . . . . . . Exploration | -11 -10 -10 -8 -8 -6 -5 -5 -5 -5 -4 -4 -4 -3 -2 ------------- Run | Yrd Mat Sub Rec Scr Fac Fac Upp Upp War Pro Fac Arm Res Res Turns Passed 6260 | 85 254 493 271 1857 402 348 231 393 661 246 65 249 601 104 Spaces Moved 8764 | 63 242 501 283 1907 263 738 582 470 1473 711 205 407 742 177 Core 339 | 16 . . . . . . . . . . . 64 170 89 Treads . | . . . . . . . . . . . . . . . Legs 84 | . . . . . . . . . . . . . 84 . Wheels 3171 | 47 242 501 283 1907 191 . . . . . . . . . Hover 181 | . . . . . . . . . . . . 181 . . Flight 4989 | . . . . . 72 738 582 470 1473 711 205 162 488 88 Fastest Speed 27 | 50 80 95 95 95 31 31 37 34 27 27 27 35 39 42 Average Speed 62 | 72 87 95 95 95 92 34 37 77 33 32 28 54 69 47 Slowest Speed 335 | 80 95 95 95 95 335 109 37 106 34 106 115 115 120 150 Overloaded Moves . | . . . . . . . . . . . . . . . Propulsion Burnouts . | . . . . . . . . . . . . . . . Robots Hopped 25 | . . . . . . 4 3 . 4 . 4 . 9 1 Potential Cave-ins 9 | . . . . . . . . . 9 . . . . . Cave-ins Triggered 1 | . . . . . . . . . 1 . . . . . Exploration Rate (%) 42 | 5 34 35 47 83 9 22 78 63 93 83 8 33 29 9 Regions Visited 14 Branch Regions 8 Pre-discovered Areas . | . . . . . . . . . . . . . . . Known Exits Taken 12 | . 1 1 1 1 1 1 1 1 1 1 1 1 . . Unknown Exits Taken 2 | 1 . . . . . . . . . . . . 1 . Scrap Searched 14 | . . . . 5 . . 2 3 . 4 . . . . Spaces Dug 8 | . . . . . . 6 1 . . . . . 1 . Terrain Destroyed 51 | . . . . 12 . 6 1 . . . . . 32 . Melee 8 | . . . . . . 6 1 . . . . . 1 . Projectile . | . . . . . . . . . . . . . . . AOE 43 | . . . . 12 . . . . . . . . 31 . Terrain Rammed . | . . . . . . . . . . . . . . . Walls Destroyed . | . . . . . . . . . . . . . . . Machines Disabled . | . . . . . . . . . . . . . . . Actions | -11 -10 -10 -8 -8 -6 -5 -5 -5 -5 -4 -4 -4 -3 -2 --------- Run | Yrd Mat Sub Rec Scr Fac Fac Upp Upp War Pro Fac Arm Res Res Total 9441 | 88 282 518 285 1950 421 809 592 490 1641 723 207 431 816 188 Wait 370 | . 18 11 1 6 126 38 3 4 146 2 . 4 11 . Move 8706 | 62 241 500 282 1906 262 730 576 469 1465 710 197 406 725 175 Hop 18 | . . . . . . 3 2 . 2 . 3 . 7 1 Pick Up 126 | 12 14 1 1 14 13 10 6 3 8 3 2 7 31 1 Fast Attach . | . . . . . . . . . . . . . . . Attach 79 | 7 . . 1 2 10 7 2 3 6 4 1 8 26 2 Detach 10 | . . . . . . . . 1 4 . 2 1 2 . Swap 27 | . 5 2 . 6 3 4 . 2 2 . 1 2 . . Drop 56 | . 4 3 . 12 7 8 1 . 7 1 1 2 10 . Fire 22 | 7 . . . 4 . . . 6 . 3 . . 2 . Melee 19 | . . . . . . 9 1 2 . . . . 2 5 Ram 4 | . . . . . . . . . . . . . . 4 Kick . | . . . . . . . . . . . . . . . Crush . | . . . . . . . . . . . . . . . Escape Stasis 1 | . . . . . . . . . 1 . . . . . Rewire . | . . . . . . . . . . . . . . . Trap . | . . . . . . . . . . . . . . . Miscellaneous 3 | . . 1 . . . . 1 . . . . 1 . . Route ------- -11/Scrapyard -10/Materials (discovered 2 exits: *Mat / *Sub) -10/Subcaves (discovered 2 exits: *Rec / Scr) -8/Recycling -8/Scraptown (discovered 2 exits: *Fac x2) -6/Factory -5/Factory -5/Upper Caves -5/Upper Caves (discovered 2 exits: *Fac / *War) -5/Warlord -4/Proximity Caves -4/Factory -4/Armory -3/Research -2/Research History --------- Turn | Location | Event 5 | -11/Scrapyard | Discovered new exit (range 15) 86 | -11/Scrapyard | Entered Materials 87 | -10/Materials | Met a group of wandering Federalists 240 | -10/Materials | Discovered new exit (range 15) 255 | -10/Materials | Identified exit to Materials 316 | -10/Materials | Discovered new exit (range 5) 317 | -10/Materials | Build established: Mutant 320 | -10/Materials | Identified exit to Subcaves 340 | -10/Materials | Entered Subcaves 341 | -10/Subcaves | Continued accompanying wandering Federalists (4) 513 | -10/Subcaves | Learned Materials stockpile data 719 | -10/Subcaves | Released subatomizers from SUBCON Basin 759 | -10/Subcaves | Shifting Twisted Machinery released Battle Cannon 822 | -10/Subcaves | Discovered new exit (range 13) 832 | -10/Subcaves | Identified exit to Recycling 833 | -10/Subcaves | Entered Recycling 1060 | -8/Recycling | Scanned before Scraplab entrance 1077 | -8/Recycling | Entered Scraplab 1085 | -8/Recycling | Discovered new exit (range 4) 1087 | -8/Recycling | Identified exit to Scraptown 1104 | -8/Recycling | Entered Scraptown 1395 | -8/Scraptown | Received an X-ray algorithm 1514 | -8/Scraptown | Visited CR-KLE's Repair Center 1524 | -8/Scraptown | CR-KLE repaired 6 parts 1547 | -8/Scraptown | Visited IN-MT5's Study 1582 | -8/Scraptown | Visited Cyclists 1600 | -8/Scraptown | Visited UFD Registry 1626 | -8/Scraptown | Registered with UFD as "Longdriver" 1639 | -8/Scraptown | Entered Cyclist Reading Room 1667 | -8/Scraptown | Visited TADAMA 1717 | -8/Scraptown | Visited Shadow of the Wyrm 1754 | -8/Scraptown | Visited SPCMW 1789 | -8/Scraptown | Heard Great Nut preacher, LISTEN AND RECITE! 2210 | -8/Scraptown | Visited Symbiants 2288 | -8/Scraptown | Discovered new exit (range 5) 2294 | -8/Scraptown | Identified exit to Factory 2457 | -8/Scraptown | Visited Junk Repository 2512 | -8/Scraptown | Visited Analyses Database 2561 | -8/Scraptown | Visited Supply Room 2583 | -8/Scraptown | Visited A0-MCA Data Center 2589 | -8/Scraptown | Given a B rating by A0-MCA 2593 | -8/Scraptown | Found A0-MCA's Component Scanner 2725 | -8/Scraptown | Met Optimus 2725 | -8/Scraptown | Accepted into 0bPrime 2765 | -8/Scraptown | Visited Derelict Rescue Squad 2771 | -8/Scraptown | Found DRS Beacon 2818 | -8/Scraptown | Discovered exit to Factory (range 5) 2835 | -8/Scraptown | Civil war broke out across Scraptown 2959 | -8/Scraptown | Found Scrap Suit 2961 | -8/Scraptown | Entered Factory 2961 | -6/Factory | Evolved 8 slots: Propulsion x2, Utility x6 2965 | -6/Factory | Lost 22 allies 3314 | -6/Factory | Fabricated K-01 Serf (x4) 3328 | -6/Factory | Discovered new exit (range 5) 3329 | -6/Factory | Identified exit to Factory 3363 | -6/Factory | Entered another Factory area 3363 | -5/Factory | Accompanied by 4 allies 3363 | -5/Factory | Evolved 2 slots: Utility x2 3460 | -5/Factory | Build established: Scavenger-Sprinter 3610 | -5/Factory | Lost 3 allies 3704 | -5/Factory | Lost 8 parts (1p4n2u1w) 3709 | -5/Factory | Discovered new exit (range 5) 3710 | -5/Factory | Identified exit to Upper Caves 3711 | -5/Factory | Entered Upper Caves 3809 | -5/Upper Caves | Activated DRS Beacon 3898 | -5/Upper Caves | Attracted the attention of an 0b10 checkpoint 3906 | -5/Upper Caves | Build established: Mutant 3934 | -5/Upper Caves | Discovered new exit (range 20) 3942 | -5/Upper Caves | Identified exit to Upper Caves 3942 | -5/Upper Caves | Entered another Upper Caves area 3945 | -5/Upper Caves | Discovered new exit (range 12) 3948 | -5/Upper Caves | Identified exit to Factory 4178 | -5/Upper Caves | Identified exit to Warlord 4269 | -5/Upper Caves | Build established: Scavenger-Mutant 4335 | -5/Upper Caves | Entered Warlord 4443 | -5/Warlord | Visited the Vortex Lab 4464 | -5/Warlord | Warlord's base attacked by MAIN.C 4464 | -5/Warlord | Rebuked by Warlord 4642 | -5/Warlord | Build established: Mutant 4814 | -5/Warlord | Warlord forces counterattacked 4883 | -5/Warlord | Spotted Executioner 4908 | -5/Warlord | Spotted Executioner 4943 | -5/Warlord | Crushed by falling debris 4944 | -5/Warlord | Spotted Striker 4944 | -5/Warlord | Discovered new exit (range 17) 4974 | -5/Warlord | Spotted Striker 4995 | -5/Warlord | Identified exit to Proximity Caves 4996 | -5/Warlord | Entered Proximity Caves 4999 | -4/Proximity Caves | Spotter reported a threat 5020 | -4/Proximity Caves | Lost 25 allies 5241 | -4/Proximity Caves | Discovered exit to Factory (range 5) 5242 | -4/Proximity Caves | Entered Factory 5242 | -4/Factory | Evolved 2 slots: Power x1, Propulsion x1 5243 | -4/Factory | Identified exit to Armory 5307 | -4/Factory | Entered Armory 5338 | -4/Armory | Lost 4 parts (1p2n1u) 5367 | -4/Armory | Spotted B-86 Titan 5505 | -4/Armory | Core integrity fell below 50% 5520 | -4/Armory | Lost 7 parts (1n4u2w) 5544 | -4/Armory | Discovered new exit (range 20) 5555 | -4/Armory | Identified exit to Research 5556 | -4/Armory | Entered Research 5556 | -3/Research | Evolved 2 slots: Utility x1, Weapon x1 5586 | -3/Research | Lost 3 parts (1n2w) 5668 | -3/Research | Spotted B-86 Titan 5757 | -3/Research | Lost 4 parts (1n2u1w) 5799 | -3/Research | Core integrity fell below 50% 5876 | -3/Research | Found Fusion Bomb Launcher 6126 | -3/Research | Found Gamma Bomb Array 6153 | -3/Research | Discovered new exit (range 8) 6157 | -3/Research | Entered another Research area 6157 | -2/Research | Evolved 2 slots: Propulsion x1, Utility x1 6166 | -2/Research | Lost 5 parts (2n3w) 6208 | -2/Research | Core integrity fell below 50% 6243 | -2/Research | Core integrity fell below 20% 6261 | -2/Research | Core destroyed Last Messages --------------- S-43 Plague destroyed. Slammed into S-43 Plague. Destabilizing: Core damaged (-29). A0-MCA's Component Scanner destroyed. Slammed into S-43 Plague. Destabilizing: Core damaged (-43). Slammed into S-43 Plague. M-36 Artificer repairs S-43 Plague. Mak. Salvage Targeting Computer destroyed. W-44 Eye sends out distress signal. Slug penetrates Wall. Adv. Launcher Guidance Computer destroyed. Field Propulsion Drive destroyed. Critical hit (Blast). Knocked back. TF Node disabled. Adv. Sensor Array tumbles out of TF Node. Adv. Signal Interpreter tumbles out of TF Node. Slammed into K-01 Serf. Destabilizing: Core damaged (-72). Map ----- +----------------------------------------------------+ | ?????????????????????????????????????????????????? | | ?????????????????????????????????????????????????? | | ?????????????????????????????????????????????????? | | ?????????????????????????????????????????????????? | | ?????????????????????????????????????????????????? | | ????????????????????????????? ???????????????????? | | ????????????????????????????# #??????????????????? | | ????????????????????????????# ??????????????????? | | ????????????????????????????# ??????????????????? | | ????????????????????????????# ??????????????????? | | ????????????????????????????# #?????????????????? | | ????????????????????????????# #?????????????????? | | ????????????????????????????# #????#+#??????????? | | ????????????????????????????# #????# #??????????? | | ????????????????????????????# #????# #??????????? | | ????????????????????????????# #????# #??????????? | | ???????????????????????????## ###### ############ | | ???????????????????????????# | | ???????????????######??????# | | ???????????????# ??????# | | ???????????????# ?????# | | ???????????????# ?????## #######/### #### | | ???????????????# ?????#% # # #?# | | ???????????????#"" ###### # # #?# | | ???????????????#"" + ssuss # # #?# | | ???????????????#"T # @ # # ### | | ???????????????#"" #k#### # # / | | ???????????????#"" ?# #??# # / ### | | ???????????????# ?# #??# # #### #?# | | ???????????????# ??# #??# # #??# #?# | | ???????????????######??# #??# ###########??# #?# | | ???????????????????????# #?? ????????????# #?## | | ???????????????????????# #?? ! ????????????# ### | | ???????????????????????# #?? +???????????# | | ???????????????????????? ??? ! #???????????##### | | ???????????????????????? ???# ##???????????????## | | ???????????????????????? ???? ??????????????????? | | ???????????????????????? ???? ??????????????????? | | ???????????????????????? ???? ??????????????????? | | ???????????????????????? ????????????????????????? | | ???????????????????????? ????????????????????????? | | ??????????????????????????????H??????????????????? | | ?????????????????????????????????????????????????? | | ?????????????????????????????????????????????????? | | ?????????????????????????????????????????????????? | | ?????????????????????????????????????????????????? | | ?????????????????????????????????????????????????? | | ?????????????????????????????????????????????????? | | ?????????????????????????????????????????????????? | | ?????????????????????????????????????????????????? | +----------------------------------------------------+ Best States ------------- Heat Dissipation 49 Energy Generation 19 Energy Capacity 250 Matter Stores 300 Matter Capacity 300 Sight Range 22 Robot Scan Range 15 Terrain Scan Density 10 Cloak Strength 2 Additional Mass Support 12 Armor Coverage 325 Phase Shifting 5 Evasion (%) 71 Targeting Accuracy 10 Launcher Accuracy 280 Salvage Targeting 4 Offensive Hacking 20 Item Schematics ----------------- None Robot Schematics ------------------ None Fabricated ------------ K-01 Serf | x4 | -6/Factory | Preloaded Repaired ---------- Nothing Alien Tech Used ----------------- None Achievements -------------- A Powerful Ally? Charge!!! Challenges ------------ None Game ------ Seed GatlingMeleeFrame Manual? 0 Play Time 02:33:02 Cumulative 69.5 hours Start 2025.07.18 @ 14:00:15 End 2025.07.20 @ 09:00:52 Sessions 11 Manual Loads 0 Difficulty Rogue Special Mode None Game No. 66 Rogue 56 Adventurer 10 Explorer 0 Win Type - Total 1 Types 1/0/0/0/0/0/0/0/0/0 Lore% 36 Gallery% 39 Achievement% 32 Wizard Run 0 Options --------- Layout 1 ASCII 0 Keyboard 0 Movement Numpad Keybinds 0 Fullscreen 1 Font 24/Smallcaps Map View 50x35 Zoom Use 0% Tactical HUD 0 Map Filters NONE Filters NONE Steam 1 RUN: 00478302-5be3-4a0a-9861-ff68c797ab10